Workbook

Sheet Cover Page
A14: ANNEXURE D - BILL OF QUANTITIES
A17: RFP NO: | D17: RFP No. 6596/29/10/2025
A19: RFP NAME: | D19: Provision of the design, supply, installation and commissioning of gas suppression and fire detection and alarm systems in Rooms 27 and 31 at CSIR Rosebank (Cape Town.
A21: BIDDER NAME

Sheet Preliminaries & Generals
A2: SUBJECT : BILL OF QUANTITIES
A4: PART 1
A6: ='Cover Page'!D19 -> Provision of the design, supply, installation and commissioning of gas suppression and fire detection and alarm systems in Rooms 27 and 31 at CSIR Rosebank (Cape Town.
A7: BILL NO. 1 - PRELIMINARIES & GENERAL
A9: ITEM NO | B9: DESCRIPTION | C9: UNIT | D9: RATE | E9: TENDERED BOQ QUANTITY | F9: TENDERED AMOUNT
B11: Preliminaries and General
A13: =1+0.001 -> 1.001 | B13: Establishment of Site | C13: sum | D13: 0 | E13: 1 | F13: =D13*E13 -> 0
A15: =A13+0.001 -> 1.002 | B15: Twelve month guarantee | C15: sum | D15: 0 | E15: 1 | F15: 0
A17: =A15+0.001 -> 1.003 | B17: Workshop drawings | C17: sum | D17: 0 | E17: 1 | F17: 0
A19: =A17+0.001 -> 1.004 | B19: As-Built drawings | C19: sum | D19: 0 | E19: 1 | F19: 0
A21: =A19+0.001 -> 1.005 | B21: Builder's work & making good | C21: sum | D21: 0 | E21: 1 | F21: 0
A23: =A21+0.001 -> 1.006 | B23: Testing, commissioning & programming of gas suppression, fire detection & alarm system | C23: sum | D23: 0 | E23: 1 | F23: 0
A25: =A23+0.001 -> 1.007 | B25: Transportation | C25: sum | D25: 0 | E25: 1 | F25: 0
A27: =A25+0.001 -> 1.008 | B27: Hiring of scaffolding and Rigging of the equipments | C27: sum | D27: 0 | E27: 1 | F27: =D27*E27 -> 0
A29: =A27+0.001 -> 1.009 | B29: Issuing of Compliance Certificate (COC) | C29: sum | D29: 0 | E29: 1 | F29: =D29*E29 -> 0
A31: =A29+0.001 -> 1.010 | B31: Training of staff | C31: sum | D31: 0 | E31: 1 | F31: =D31*E31 -> 0
A33: =A31+0.001 -> 1.011 | B33: Handover documentation 1 x archlever file & 1 x flashdrive | C33: sum | D33: 0 | E33: 1 | F33: =D33*E33 -> 0
B40: TOTAL CARRIED FORWARD | F40: =SUM(F11:F31) -> 0
A46: Company Representative: Name | D46: Capacity
A49: Signature | D49: Date

Sheet Fire
A2: SUBJECT : BILL OF QUANTITIES
A4: PART 2
A6: ='Preliminaries & Generals'!A6 -> Provision of the design, supply, installation and commissioning of gas suppression and fire detection and alarm systems in Rooms 27 and 31 at CSIR Rosebank (Cape Town.
A7: BILL NO. 2 - FIRE
A9: ITEM NO | B9: DESCRIPTION | C9: UNIT | D9: RATE | E9: TENDERED BOQ QUANTITY | F9: TENDERED AMOUNT
B11: BUILDING 2
A13: =2+0.001 -> 2.001 | B13: Design of Energen gas suppression, fire detection and alarm systems in accordance with SANS 14520 for room 27. The room sizes are 23 meter square and 3 meter high (FFL to Soffit of slab.) | C13: Sum | D13: 0 | E13: 1 | F13: =D13*E13 -> 0
A14: =A13+0.001 -> 2.002 | B14: Design of Energen gas suppression, fire detection and alarm systems in accordance with SANS 14520 for room 31. The room sizes are 21 meter square and 3 meter high (FFL to Soffit of slab.) | C14: Sum | D14: 0 | E14: 1 | F14: =D14*E14 -> 0
A15: =A14+0.001 -> 2.003 | B15: Construction (procurement of materials for the installation, this will include all smoke detectors, wiring, conduits, gas cylinders, pipes, nozzles etc) - devices to be compatible to the selected Gas Control Panel (GCU). | C15: Sum | D15: 0 | E15: 1 | F15: 0
A16: =A15+0.001 -> 2.004 | B16: Allow for fire detection configuration/interfacing to HVAC system. | C16: Sum | D16: 0 | E16: 1 | F16: =D16*E16 -> 0
A17: 2.005 | B17: Conduct room integrity test and resolve all non-compliance items to make the compliant | C17: Sum | D17: 0 | E17: 1 | F17: =D17*E17 -> 0
A18: 2.006 | B18: Manufacture, supply and install 120 min Class D Fire Door (Manufactured to SANS1253:2016), including frame. Class D Capped & Cladded Double Fire Door, 1340X2330 with 280mm steel frame to suit. Accoustic rated with peremiter and drop down seals to be included. | C18: Sum | D18: 0 | E18: 1 | F18: 0
A19: 2.007 | B19: Manufacture, supply and install 120 min Class D Fire Door (Manufactured to SANS1253:2016), including frame. Class D Capped & Cladded Double Fire Door, 1380X2350 with 280mm steel frame to suit.Accoustic rated with perimeter and drop down seals to be included. | C19: Sum | D19: 0 | E19: 1 | F19: 0
A20: 2.008 | B20: Design and installation sign off by registered Professional Engineer or Technologist with ECSA. | C20: Sum | D20: 0 | E20: 1 | F20: =D20*E20 -> 0
B23: TOTAL CARRIED FORWARD | F23: =SUM(F10:F20) -> 0
A29: Company Representative: Name | D29: Capacity
A32: Signature | D32: Date

Sheet Summary
A2: SUBJECT : BILL OF QUANTITIES
A4: PART 3
A6: =Fire!A6 -> Provision of the design, supply, installation and commissioning of gas suppression and fire detection and alarm systems in Rooms 27 and 31 at CSIR Rosebank (Cape Town.
A7: BILL NO. 3 - SUMMARY
A9: ITEM NO | B9: DESCRIPTION | C9: FROM PART NO. | D9: PAGE NO. | E9: TENDERED AMOUNT
B11: MAIN OFFER
A13: =3+0.001 -> 3.001 | B13: PRELIMINARIES & GENERALS | C13: 1 | E13: ='Preliminaries & Generals'!F40 -> 0
A14: =A13+0.001 -> 3.002 | B14: FIRE | C14: 2 | E14: =Fire!F23 -> 0
B17: SUB TOTAL 1 | E17: =SUM(E11:E14) -> 0
B19: ADD 10% CONTINGENCY | E19: 0
B21: SUB TOTAL 2 | E21: =SUM(E17,E19) -> 0
B24: ADD 15% VAT | E24: =E21*15% -> 0
B26: TRADE DISCOUNT | E26: =SUM(E19,E22) -> 0
B28: TOTAL | E28: =(E21+E24)-E26 -> 0
B30: SETTLEMENT DISCOUNT | E30: =SUM(E23,E26) -> 0
A32: Definition of discounts
A33: · A settlement discount is where a business offers the CSIR a discount when an invoice is paid on time or within 45 days from receipt of the statement.
A34: · A trade discount is defined as a type of discount that is cut off the retail or proposal price of an item. The discount is immediately deducted from the proposal price.
A40: Company Representative: Name | D40: Capacity
A43: Signature | D43: Date
